Workbook

Sheet Model
A2: Roulette Wheel
A4: There are 38 possible outcomes, two are double zero, 18 are black and 18 are red.
A6: If you bet either black or red your chances of winning an amount equal to your bet is
A7: 18/38. If you win you keep your bet and receive an additional amount equal to your
A8: bet. If you lose you receive nothing and lose your bet. This can be modeled as:
B10: Starting Amount | C10: 1000
B11: Amount Bet | C11: 10
A12: Bet Number | B12: Total Dollars Owned Before Bet | C12: Amount Bet | D12: Win or Lose | E12: Change in Wealth | F12: Total Dollars Owned After Bet
A14: =1+A13 -> 1 | B14: =C10 -> 1000 | C14: =$C$11 -> 10 | D14: =IF(RAND()<18/38,"Win","Lose") -> Lose | E14: =IF(D14="Win",C14,-C14) -> -10 | F14: =B14+E14 -> 990
A15: =1+A14 -> 2 | B15: =F14 -> 990 | C15: =$C$11 -> 10 | D15: =IF(RAND()<18/38,"Win","Lose") -> Lose | E15: =IF(D15="Win",C15,-C15) -> -10 | F15: =B15+E15 -> 980
A16: =1+A15 -> 3 | B16: =F15 -> 980 | C16: 10 | D16: Lose | E16: =IF(D16="Win",C16,-C16) -> -10 | F16: =B16+E16 -> 970
A17: 4 | B17: 970 | C17: 10 | D17: Lose | E17: -10 | F17: 960
A18: 5 | B18: 960 | C18: 10 | D18: Win | E18: 10 | F18: 970
A19: 6 | B19: 970 | C19: 10 | D19: Win | E19: 10 | F19: 980
A20: 7 | B20: 980 | C20: 10 | D20: Win | E20: 10 | F20: 990
A21: 8 | B21: 990 | C21: 10 | D21: Win | E21: 10 | F21: 1000
A22: 9 | B22: 1000 | C22: 10 | D22: Lose | E22: -10 | F22: 990
A23: 10 | B23: 990 | C23: 10 | D23: Lose | E23: -10 | F23: 980
A24: 11 | B24: 980 | C24: 10 | D24: Lose | E24: -10 | F24: 970
A25: 12 | B25: 970 | C25: 10 | D25: Lose | E25: -10 | F25: 960
A26: 13 | B26: 960 | C26: 10 | D26: Lose | E26: -10 | F26: 950
A27: 14 | B27: 950 | C27: 10 | D27: Win | E27: 10 | F27: 960
A28: 15 | B28: 960 | C28: 10 | D28: Lose | E28: -10 | F28: 950
A29: 16 | B29: 950 | C29: 10 | D29: Win | E29: 10 | F29: 960
A30: 17 | B30: 960 | C30: 10 | D30: Win | E30: 10 | F30: 970
A31: 18 | B31: 970 | C31: 10 | D31: Win | E31: 10 | F31: 980
A32: 19 | B32: 980 | C32: 10 | D32: Lose | E32: -10 | F32: 970
A33: 20 | B33: 970 | C33: 10 | D33: Lose | E33: -10 | F33: 960
A34: 21 | B34: 960 | C34: 10 | D34: Win | E34: 10 | F34: 970
A35: 22 | B35: 970 | C35: 10 | D35: Lose | E35: -10 | F35: 960
A36: 23 | B36: 960 | C36: 10 | D36: Lose | E36: -10 | F36: 950
A37: 24 | B37: 950 | C37: 10 | D37: Lose | E37: -10 | F37: 940
A38: 25 | B38: 940 | C38: 10 | D38: Lose | E38: -10 | F38: 930
A39: 26 | B39: 930 | C39: 10 | D39: Lose | E39: -10 | F39: 920
A40: 27 | B40: 920 | C40: 10 | D40: Win | E40: 10 | F40: 930
A41: 28 | B41: 930 | C41: 10 | D41: Win | E41: 10 | F41: 940
A42: 29 | B42: 940 | C42: 10 | D42: Lose | E42: -10 | F42: 930
A43: 30 | B43: 930 | C43: 10 | D43: Lose | E43: -10 | F43: 920
A44: 31 | B44: 920 | C44: 10 | D44: Lose | E44: -10 | F44: 910
A45: 32 | B45: 910 | C45: 10 | D45: Lose | E45: -10 | F45: 900
A46: 33 | B46: 900 | C46: 10 | D46: Lose | E46: -10 | F46: 890
A47: 34 | B47: 890 | C47: 10 | D47: Win | E47: 10 | F47: 900
A48: 35 | B48: 900 | C48: 10 | D48: Lose | E48: -10 | F48: 890
A49: 36 | B49: 890 | C49: 10 | D49: Lose | E49: -10 | F49: 880
A50: 37 | B50: 880 | C50: 10 | D50: Lose | E50: -10 | F50: 870
A51: 38 | B51: 870 | C51: 10 | D51: Lose | E51: -10 | F51: 860
A52: 39 | B52: 860 | C52: 10 | D52: Lose | E52: -10 | F52: 850
A53: 40 | B53: 850 | C53: 10 | D53: Win | E53: 10 | F53: 860
A54: 41 | B54: 860 | C54: 10 | D54: Win | E54: 10 | F54: 870
A55: 42 | B55: 870 | C55: 10 | D55: Win | E55: 10 | F55: 880
A56: 43 | B56: 880 | C56: 10 | D56: Lose | E56: -10 | F56: 870
A57: 44 | B57: 870 | C57: 10 | D57: Win | E57: 10 | F57: 880
A58: 45 | B58: 880 | C58: 10 | D58: Win | E58: 10 | F58: 890
A59: 46 | B59: 890 | C59: 10 | D59: Win | E59: 10 | F59: 900
A60: 47 | B60: 900 | C60: 10 | D60: Win | E60: 10 | F60: 910
A61: 48 | B61: 910 | C61: 10 | D61: Win | E61: 10 | F61: 920
A62: 49 | B62: 920 | C62: 10 | D62: Win | E62: 10 | F62: 930
A63: 50 | B63: 930 | C63: 10 | D63: Win | E63: 10 | F63: 940
E64: =SUM(E14:E63) -> -60
E66: Final Tally of Amount Won (Lost) | F66: =F63-B14 -> -60
E67: Maximum Bet | F67: =MAX(C14:C63) -> 10
A69: 1 | B69: -300 | C69: =FREQUENCY(Simulations!C3:L1002,Model!B69:B98) -> 1
A70: =1+A69 -> 2 | B70: -280 | C70: 0
A71: 3 | B71: -260 | C71: 7
A72: 4 | B72: -240 | C72: 15
A73: 5 | B73: -220 | C73: 22
A74: 6 | B74: -200 | C74: 55
A75: 7 | B75: -180 | C75: 105
A76: 8 | B76: -160 | C76: 174
A77: 9 | B77: -140 | C77: 307
A78: 10 | B78: -120 | C78: 494
A79: 11 | B79: -100 | C79: 696
A80: 12 | B80: -80 | C80: 865
A81: 13 | B81: -60 | C81: 989
A82: =1+A81 -> 14 | B82: -40 | C82: 1134
A83: 15 | B83: -20 | C83: 1114
A84: 16 | B84: 0 | C84: 1060
A85: 17 | B85: 20 | C85: 873
A86: 18 | B86: 40 | C86: 705
A87: 19 | B87: 60 | C87: 554
A88: 20 | B88: 80 | C88: 360 | D88: P(Win) | E88: =18/38 -> 0.4736842105 | F88: =getformula(E88) -> 
A89: 21 | B89: 100 | C89: 228 | D89: P(Lose) | E89: =1-E88 -> 0.5263157895 | F89: =getformula(E89) -> 
A90: 22 | B90: 120 | C90: 121 | D90: Bet Amount | E90: =C11 -> 10
A91: 23 | B91: 140 | C91: 64 | D91: E(NPV) | E91: =(E88-E89)*E90 -> -0.5263157895 | F91: Note: NPV=Payoff-Bet = Bet if win or -Bet if Lose
A92: 24 | B92: 160 | C92: 36 | D92: E(NPV*50) | E92: =E91*50 -> -26.31578947
A93: 25 | B93: 180 | C93: 12
A94: 26 | B94: 200 | C94: 5 | D94: S(NPV*50) | E94: =AVERAGE(DataTableValues) -> -27.248 | F94: <-- S() Simulated Mean
A95: 27 | B95: 220 | C95: 1 | D95: SD(NPV*50) | E95: =_xlfn.STDEV.S(DataTableValues) -> 70.26379008 | F95: <-- SD() Simulated StDev
A96: 28 | B96: 240 | C96: 2 | D96: SSD(NPV*50) | E96: =E95/10000^0.5 -> 0.7026379008 | F96: <-- SSD() Simulated SAMPLE StDev
A97: 29 | B97: 260 | C97: 1
A98: 30 | B98: 280 | C98: 0 | D98: =$E$94-$E$95*$G$98 -> -238.0393702 | E98: =E94 -> -27.248 | F98: =$E$94+$E$95*$G$98 -> 183.5433702 | G98: 3 | H98: CI interval on Mean
D99: =$E$94-$E$96*$G$99 -> -29.3559137 | E99: =E94 -> -27.248 | F99: =$E$94+$E$96*$G$99 -> -25.1400863 | G99: 3 | H99: CI interval on Sample Mean
B100: Sum --> | C100: =SUM(C69:C98) -> 10000

Sheet Simulations
C1: Data Table: Simulated Values of Formula Cell
A2: Formula Cell--> | B2: =Model!F66 -> -60 | C2: 1 | D2: 2 | E2: 3 | F2: 4 | G2: 5 | H2: 6 | I2: 7 | J2: 8 | K2: 9 | L2: 10
B3: 1 | C3: 0 | D3: -40 | E3: -20 | F3: 0 | G3: 60 | H3: 120 | I3: -40 | J3: -40 | K3: 40 | L3: 40
A4: Dummy1 | B4: 2 | C4: -20 | D4: -40 | E4: -80 | F4: -20 | G4: -20 | H4: 60 | I4: -120 | J4: 40 | K4: -120 | L4: 80
A5: Dummy2 | B5: 3 | C5: -80 | D5: -100 | E5: 0 | F5: -40 | G5: -40 | H5: 60 | I5: -140 | J5: 40 | K5: 80 | L5: -100
A6: =MAX(C3:L1002) -> 260 | B6: 4 | C6: -60 | D6: 20 | E6: -60 | F6: 0 | G6: 20 | H6: 40 | I6: 20 | J6: 0 | K6: -40 | L6: -20
A7: =MIN(C3:L1002) -> -300 | B7: 5 | C7: 60 | D7: -140 | E7: -120 | F7: 100 | G7: -100 | H7: -140 | I7: -160 | J7: -40 | K7: 100 | L7: -80
B8: 6 | C8: -80 | D8: -80 | E8: 40 | F8: -100 | G8: 20 | H8: 80 | I8: 140 | J8: 100 | K8: 60 | L8: 40
B9: 7 | C9: -80 | D9: -20 | E9: -20 | F9: 40 | G9: -80 | H9: -20 | I9: 60 | J9: 20 | K9: 60 | L9: -20
B10: 8 | C10: 0 | D10: 60 | E10: -40 | F10: -160 | G10: -80 | H10: 100 | I10: -100 | J10: 60 | K10: 40 | L10: -100
B11: 9 | C11: -160 | D11: -140 | E11: 20 | F11: -80 | G11: 0 | H11: -80 | I11: -60 | J11: -140 | K11: -60 | L11: -60
B12: 10 | C12: -120 | D12: 20 | E12: 100 | F12: 80 | G12: -140 | H12: -100 | I12: -20 | J12: 0 | K12: 100 | L12: -40
B13: 11 | C13: -120 | D13: -160 | E13: -140 | F13: 60 | G13: 20 | H13: -40 | I13: -160 | J13: -60 | K13: -140 | L13: -120
B14: 12 | C14: -80 | D14: -40 | E14: -60 | F14: -60 | G14: -120 | H14: -20 | I14: -40 | J14: -40 | K14: -100 | L14: -140
B15: 13 | C15: -60 | D15: -40 | E15: -40 | F15: -20 | G15: -40 | H15: -20 | I15: -60 | J15: -100 | K15: -120 | L15: 120
B16: 14 | C16: -20 | D16: -60 | E16: -40 | F16: -80 | G16: -60 | H16: -40 | I16: 60 | J16: -40 | K16: 20 | L16: 40
B17: 15 | C17: -60 | D17: -100 | E17: 20 | F17: -180 | G17: 20 | H17: -100 | I17: 40 | J17: 80 | K17: -40 | L17: -140
B18: 16 | C18: -80 | D18: 180 | E18: 20 | F18: 40 | G18: 100 | H18: -100 | I18: -40 | J18: -40 | K18: -40 | L18: -140
B19: 17 | C19: -120 | D19: -200 | E19: -60 | F19: -60 | G19: -80 | H19: 20 | I19: 40 | J19: 20 | K19: 20 | L19: 240
B20: 18 | C20: 60 | D20: -40 | E20: -20 | F20: -20 | G20: 0 | H20: -260 | I20: -60 | J20: -40 | K20: 100 | L20: -20
B21: 19 | C21: -60 | D21: -80 | E21: 20 | F21: 100 | G21: 60 | H21: -140 | I21: 40 | J21: -60 | K21: 0 | L21: 80
B22: 20 | C22: -80 | D22: -40 | E22: 100 | F22: -100 | G22: -40 | H22: 0 | I22: 0 | J22: -20 | K22: 0 | L22: 40
B23: 21 | C23: -20 | D23: -60 | E23: 100 | F23: -20 | G23: -100 | H23: -40 | I23: 0 | J23: -60 | K23: 60 | L23: -20
B24: 22 | C24: -20 | D24: -100 | E24: -60 | F24: 60 | G24: -180 | H24: -80 | I24: -120 | J24: -100 | K24: 60 | L24: -60
B25: 23 | C25: -40 | D25: 20 | E25: -60 | F25: -80 | G25: -100 | H25: -140 | I25: -40 | J25: 60 | K25: -20 | L25: -40
B26: 24 | C26: -20 | D26: 100 | E26: -80 | F26: -40 | G26: 40 | H26: -40 | I26: -60 | J26: 20 | K26: -40 | L26: -40
B27: 25 | C27: 80 | D27: -180 | E27: -20 | F27: -120 | G27: -60 | H27: -20 | I27: 40 | J27: -60 | K27: 0 | L27: 20
B28: 26 | C28: -20 | D28: -80 | E28: 20 | F28: 80 | G28: 100 | H28: 20 | I28: 0 | J28: 0 | K28: -40 | L28: -80
B29: 27 | C29: 0 | D29: 20 | E29: -60 | F29: -140 | G29: -60 | H29: 20 | I29: -80 | J29: -40 | K29: -40 | L29: 40
B30: 28 | C30: -100 | D30: -60 | E30: -100 | F30: -100 | G30: 0 | H30: -20 | I30: -80 | J30: 80 | K30: -80 | L30: 20
B31: 29 | C31: 80 | D31: -80 | E31: -100 | F31: -40 | G31: 120 | H31: -20 | I31: 0 | J31: -100 | K31: -40 | L31: -40
B32: 30 | C32: -120 | D32: -140 | E32: -40 | F32: 40 | G32: -80 | H32: 0 | I32: -180 | J32: 20 | K32: -220 | L32: -40
B33: 31 | C33: -80 | D33: -140 | E33: 0 | F33: 20 | G33: -20 | H33: -60 | I33: 140 | J33: -40 | K33: 20 | L33: -20
B34: 32 | C34: -20 | D34: 40 | E34: 80 | F34: -60 | G34: -240 | H34: -160 | I34: 20 | J34: 20 | K34: 40 | L34: 0
B35: 33 | C35: -100 | D35: 40 | E35: 0 | F35: 80 | G35: -60 | H35: 0 | I35: -40 | J35: -20 | K35: -60 | L35: -40
B36: 34 | C36: -60 | D36: 40 | E36: -80 | F36: 80 | G36: -120 | H36: 20 | I36: -100 | J36: -60 | K36: 80 | L36: -20
B37: 35 | C37: -60 | D37: -80 | E37: -120 | F37: 140 | G37: -120 | H37: -100 | I37: -20 | J37: -120 | K37: 40 | L37: -60
B38: 36 | C38: 120 | D38: -40 | E38: -80 | F38: -60 | G38: -20 | H38: 80 | I38: 40 | J38: -20 | K38: -100 | L38: 0
B39: 37 | C39: 140 | D39: -20 | E39: -80 | F39: -100 | G39: 80 | H39: -80 | I39: 0 | J39: -80 | K39: -40 | L39: -20
B40: 38 | C40: -100 | D40: -20 | E40: 60 | F40: -40 | G40: -20 | H40: 40 | I40: -60 | J40: -40 | K40: 0 | L40: -20
B41: 39 | C41: 0 | D41: -40 | E41: -20 | F41: 120 | G41: -100 | H41: -80 | I41: -160 | J41: -80 | K41: -120 | L41: 60
B42: 40 | C42: -160 | D42: -40 | E42: 0 | F42: -80 | G42: -40 | H42: -40 | I42: 20 | J42: -140 | K42: -20 | L42: 20
B43: 41 | C43: -40 | D43: 20 | E43: -40 | F43: 20 | G43: 20 | H43: -80 | I43: -40 | J43: 20 | K43: -140 | L43: -60
B44: 42 | C44: 40 | D44: -120 | E44: 20 | F44: -120 | G44: 0 | H44: 20 | I44: -20 | J44: -140 | K44: 40 | L44: -40
B45: 43 | C45: -140 | D45: 160 | E45: -80 | F45: -80 | G45: -20 | H45: 140 | I45: -40 | J45: 0 | K45: -40 | L45: 0
B46: 44 | C46: -20 | D46: 0 | E46: -80 | F46: -20 | G46: -80 | H46: -20 | I46: -80 | J46: -40 | K46: -80 | L46: -40
B47: 45 | C47: 20 | D47: -20 | E47: -80 | F47: 0 | G47: -120 | H47: -100 | I47: -40 | J47: 0 | K47: -100 | L47: -20
B48: 46 | C48: 80 | D48: 0 | E48: -80 | F48: -80 | G48: 0 | H48: -120 | I48: -200 | J48: -40 | K48: -60 | L48: -60
B49: 47 | C49: 40 | D49: 40 | E49: 20 | F49: -100 | G49: -40 | H49: -20 | I49: 60 | J49: -80 | K49: 20 | L49: -140
B50: 48 | C50: -60 | D50: -100 | E50: 0 | F50: -120 | G50: -80 | H50: -180 | I50: -100 | J50: -40 | K50: -100 | L50: 0
B51: 49 | C51: 20 | D51: -120 | E51: -60 | F51: -100 | G51: -40 | H51: -20 | I51: 140 | J51: 60 | K51: -20 | L51: 20
B52: 50 | C52: -20 | D52: 60 | E52: -40 | F52: 20 | G52: -140 | H52: -40 | I52: -120 | J52: -140 | K52: -180 | L52: -60
B53: 51 | C53: 40 | D53: -60 | E53: -240 | F53: 20 | G53: -20 | H53: -80 | I53: -80 | J53: 60 | K53: 20 | L53: -120
B54: 52 | C54: 0 | D54: 40 | E54: -100 | F54: 140 | G54: 0 | H54: 60 | I54: 0 | J54: -100 | K54: -60 | L54: -40
B55: 53 | C55: -160 | D55: 0 | E55: 0 | F55: -20 | G55: 40 | H55: -60 | I55: -60 | J55: 60 | K55: -100 | L55: -140
B56: 54 | C56: -20 | D56: 40 | E56: -120 | F56: -40 | G56: -60 | H56: -100 | I56: -40 | J56: 0 | K56: 60 | L56: -20
B57: 55 | C57: 20 | D57: -140 | E57: -20 | F57: 0 | G57: -40 | H57: -20 | I57: 40 | J57: 100 | K57: -60 | L57: -100
B58: 56 | C58: -100 | D58: -120 | E58: 60 | F58: -80 | G58: -60 | H58: -80 | I58: 0 | J58: -140 | K58: -80 | L58: 40
B59: 57 | C59: -40 | D59: 20 | E59: -40 | F59: -100 | G59: 140 | H59: 0 | I59: -20 | J59: 40 | K59: -20 | L59: 0
B60: 58 | C60: 20 | D60: -40 | E60: 140 | F60: 60 | G60: -80 | H60: -60 | I60: -40 | J60: 80 | K60: 40 | L60: -40
B61: 59 | C61: 0 | D61: -40 | E61: -60 | F61: -60 | G61: 60 | H61: -60 | I61: -60 | J61: 80 | K61: 20 | L61: -20
B62: 60 | C62: 40 | D62: -20 | E62: -80 | F62: -40 | G62: 40 | H62: -40 | I62: -20 | J62: 60 | K62: -40 | L62: 100
B63: 61 | C63: -140 | D63: -40 | E63: 140 | F63: -40 | G63: -40 | H63: -120 | I63: -60 | J63: -120 | K63: 40 | L63: -140
B64: 62 | C64: 40 | D64: -80 | E64: -60 | F64: -40 | G64: -60 | H64: -120 | I64: 0 | J64: -80 | K64: -60 | L64: 60
B65: 63 | C65: -60 | D65: -40 | E65: -120 | F65: -80 | G65: -40 | H65: -60 | I65: -40 | J65: -60 | K65: 60 | L65: -20
B66: 64 | C66: -80 | D66: -60 | E66: -100 | F66: -120 | G66: 80 | H66: -80 | I66: -140 | J66: 0 | K66: -40 | L66: -60
B67: 65 | C67: 40 | D67: -60 | E67: -100 | F67: -60 | G67: -60 | H67: -80 | I67: 40 | J67: -80 | K67: 40 | L67: -60
B68: 66 | C68: 40 | D68: 120 | E68: -40 | F68: -60 | G68: -120 | H68: -40 | I68: -20 | J68: -20 | K68: -20 | L68: 0
B69: 67 | C69: -40 | D69: -60 | E69: -80 | F69: -120 | G69: -120 | H69: 40 | I69: -120 | J69: -80 | K69: -120 | L69: -160
B70: 68 | C70: -20 | D70: 160 | E70: 0 | F70: -80 | G70: 60 | H70: -40 | I70: 20 | J70: -100 | K70: -80 | L70: -60
B71: 69 | C71: -60 | D71: -80 | E71: -20 | F71: 120 | G71: 60 | H71: -40 | I71: -160 | J71: -40 | K71: 20 | L71: 0
B72: 70 | C72: -120 | D72: -80 | E72: -40 | F72: 0 | G72: -80 | H72: -100 | I72: 0 | J72: -140 | K72: 100 | L72: -60
B73: 71 | C73: -120 | D73: -80 | E73: 40 | F73: -120 | G73: 0 | H73: -20 | I73: 0 | J73: -60 | K73: -20 | L73: 0
B74: 72 | C74: 0 | D74: 20 | E74: 40 | F74: -80 | G74: -80 | H74: 0 | I74: -80 | J74: -40 | K74: 100 | L74: 40
B75: 73 | C75: 20 | D75: 80 | E75: -60 | F75: 40 | G75: -60 | H75: -60 | I75: 0 | J75: 60 | K75: 0 | L75: -40
B76: 74 | C76: -40 | D76: 40 | E76: 0 | F76: 140 | G76: -60 | H76: 0 | I76: -40 | J76: -60 | K76: -160 | L76: -100
B77: 75 | C77: 40 | D77: -20 | E77: 120 | F77: -40 | G77: 0 | H77: 80 | I77: 120 | J77: -60 | K77: -80 | L77: -140
B78: 76 | C78: -60 | D78: -60 | E78: -120 | F78: -40 | G78: -140 | H78: 0 | I78: 20 | J78: 0 | K78: 140 | L78: 20
B79: 77 | C79: 40 | D79: -20 | E79: -180 | F79: -160 | G79: 0 | H79: -40 | I79: -60 | J79: 40 | K79: 120 | L79: 40
B80: 78 | C80: -40 | D80: -120 | E80: -40 | F80: -60 | G80: -60 | H80: -120 | I80: -40 | J80: 0 | K80: 60 | L80: -80
B81: 79 | C81: -40 | D81: -100 | E81: -120 | F81: -80 | G81: -40 | H81: -20 | I81: 20 | J81: -140 | K81: -40 | L81: 80
B82: 80 | C82: 40 | D82: -20 | E82: -40 | F82: -40 | G82: 0 | H82: 0 | I82: 80 | J82: -20 | K82: -100 | L82: -160
B83: 81 | C83: 20 | D83: -40 | E83: 60 | F83: -60 | G83: 0 | H83: 60 | I83: -120 | J83: -100 | K83: 20 | L83: -60
B84: 82 | C84: -40 | D84: 40 | E84: -60 | F84: -100 | G84: -100 | H84: 0 | I84: -40 | J84: 0 | K84: 40 | L84: -40
B85: 83 | C85: -40 | D85: 60 | E85: 0 | F85: -60 | G85: -80 | H85: -120 | I85: -80 | J85: -60 | K85: 60 | L85: -60
B86: 84 | C86: 40 | D86: -20 | E86: -140 | F86: -100 | G86: -120 | H86: 140 | I86: -120 | J86: 0 | K86: -60 | L86: -20
B87: 85 | C87: -40 | D87: -100 | E87: -60 | F87: -40 | G87: -100 | H87: 60 | I87: -40 | J87: -160 | K87: -80 | L87: 40
B88: 86 | C88: 40 | D88: -20 | E88: 0 | F88: -60 | G88: -60 | H88: -20 | I88: -80 | J88: -100 | K88: -100 | L88: 40
B89: 87 | C89: -100 | D89: -80 | E89: 0 | F89: 20 | G89: -180 | H89: -20 | I89: -120 | J89: -40 | K89: -80 | L89: 100
B90: 88 | C90: -40 | D90: -100 | E90: 60 | F90: 80 | G90: -60 | H90: -20 | I90: -80 | J90: -100 | K90: 20 | L90: -60
B91: 89 | C91: -80 | D91: 20 | E91: 20 | F91: -180 | G91: -20 | H91: -120 | I91: -140 | J91: 20 | K91: 20 | L91: -120
B92: 90 | C92: 60 | D92: 20 | E92: -20 | F92: -60 | G92: -20 | H92: 0 | I92: -60 | J92: -100 | K92: -120 | L92: 0
B93: 91 | C93: -80 | D93: -120 | E93: -40 | F93: -60 | G93: 20 | H93: -60 | I93: 20 | J93: -80 | K93: -80 | L93: -120
B94: 92 | C94: 0 | D94: -100 | E94: -60 | F94: -80 | G94: -140 | H94: -80 | I94: 20 | J94: 60 | K94: -160 | L94: 80
B95: 93 | C95: -60 | D95: 40 | E95: -60 | F95: 40 | G95: 20 | H95: -120 | I95: -120 | J95: -20 | K95: 40 | L95: 20
B96: 94 | C96: -140 | D96: 40 | E96: -40 | F96: -60 | G96: -100 | H96: 0 | I96: 80 | J96: 80 | K96: -80 | L96: 0
B97: 95 | C97: 40 | D97: -100 | E97: -80 | F97: -100 | G97: 60 | H97: 160 | I97: -40 | J97: 20 | K97: 40 | L97: -40
B98: 96 | C98: -120 | D98: 20 | E98: -80 | F98: 0 | G98: -200 | H98: 40 | I98: -80 | J98: -20 | K98: 20 | L98: 60
B99: 97 | C99: 0 | D99: -120 | E99: -120 | F99: -20 | G99: 20 | H99: 0 | I99: -80 | J99: 20 | K99: 0 | L99: -100
B100: 98 | C100: -200 | D100: -20 | E100: -80 | F100: 20 | G100: -120 | H100: 0 | I100: 60 | J100: -80 | K100: -20 | L100: 40
B101: 99 | C101: -20 | D101: 100 | E101: -80 | F101: -100 | G101: -60 | H101: -40 | I101: -100 | J101: 20 | K101: -100 | L101: 100
B102: 100 | C102: -60 | D102: 60 | E102: -60 | F102: 20 | G102: -20 | H102: -40 | I102: 0 | J102: 40 | K102: -80 | L102: -20
B103: 101 | C103: -40 | D103: -160 | E103: 20 | F103: -80 | G103: -120 | H103: -20 | I103: -80 | J103: -20 | K103: -40 | L103: 40
B104: 102 | C104: 0 | D104: 0 | E104: 0 | F104: 20 | G104: -140 | H104: -40 | I104: -120 | J104: 120 | K104: 20 | L104: -80
B105: 103 | C105: 120 | D105: -60 | E105: -40 | F105: 0 | G105: 40 | H105: -20 | I105: 60 | J105: 60 | K105: -120 | L105: -80
B106: 104 | C106: 0 | D106: 140 | E106: -80 | F106: 20 | G106: 60 | H106: 40 | I106: -60 | J106: 0 | K106: 0 | L106: 0
B107: 105 | C107: -120 | D107: -140 | E107: 20 | F107: 20 | G107: -20 | H107: -80 | I107: -20 | J107: -100 | K107: -140 | L107: -40
B108: 106 | C108: 20 | D108: -100 | E108: -80 | F108: -60 | G108: 80 | H108: -60 | I108: 40 | J108: -40 | K108: -40 | L108: 120
B109: 107 | C109: 0 | D109: -20 | E109: -160 | F109: -100 | G109: -40 | H109: -80 | I109: -80 | J109: -100 | K109: -20 | L109: -100
B110: 108 | C110: -100 | D110: -60 | E110: -20 | F110: -60 | G110: -60 | H110: 20 | I110: -140 | J110: 60 | K110: -100 | L110: -140
B111: 109 | C111: -40 | D111: -40 | E111: -120 | F111: 60 | G111: -100 | H111: 40 | I111: -20 | J111: -140 | K111: -60 | L111: -60
B112: 110 | C112: -120 | D112: -20 | E112: -100 | F112: -120 | G112: 0 | H112: -120 | I112: 20 | J112: -40 | K112: -60 | L112: 40
B113: 111 | C113: 0 | D113: -60 | E113: 180 | F113: 20 | G113: -80 | H113: -40 | I113: -140 | J113: -60 | K113: -140 | L113: -60
B114: 112 | C114: 60 | D114: -20 | E114: -80 | F114: -120 | G114: 80 | H114: -60 | I114: 0 | J114: -140 | K114: 80 | L114: 120
B115: 113 | C115: -40 | D115: 0 | E115: 0 | F115: -60 | G115: -40 | H115: -40 | I115: -180 | J115: -140 | K115: 40 | L115: -100
B116: 114 | C116: 0 | D116: -140 | E116: -100 | F116: -20 | G116: -80 | H116: -20 | I116: -60 | J116: -80 | K116: 60 | L116: 0
B117: 115 | C117: -60 | D117: -40 | E117: 0 | F117: -100 | G117: 40 | H117: 0 | I117: 20 | J117: 160 | K117: 20 | L117: -140
B118: 116 | C118: -100 | D118: 60 | E118: -120 | F118: -100 | G118: 40 | H118: 100 | I118: -140 | J118: -40 | K118: -20 | L118: 60
B119: 117 | C119: -60 | D119: 40 | E119: -140 | F119: -100 | G119: -60 | H119: 20 | I119: 0 | J119: -40 | K119: 0 | L119: -120
B120: 118 | C120: -140 | D120: 40 | E120: -40 | F120: -60 | G120: 40 | H120: 0 | I120: -120 | J120: 160 | K120: -20 | L120: 40
B121: 119 | C121: 20 | D121: 20 | E121: -100 | F121: -40 | G121: -80 | H121: 20 | I121: -20 | J121: -60 | K121: -80 | L121: 0
B122: 120 | C122: -80 | D122: 20 | E122: 0 | F122: -80 | G122: 20 | H122: 100 | I122: -180 | J122: -20 | K122: 20 | L122: 120
B123: 121 | C123: 80 | D123: -40 | E123: -60 | F123: -80 | G123: 0 | H123: -60 | I123: -120 | J123: -80 | K123: 60 | L123: -140
B124: 122 | C124: -60 | D124: -100 | E124: 100 | F124: 80 | G124: -40 | H124: -120 | I124: 100 | J124: -60 | K124: -120 | L124: -140
B125: 123 | C125: -140 | D125: -20 | E125: -160 | F125: 20 | G125: -100 | H125: -20 | I125: -40 | J125: -40 | K125: 0 | L125: 0
B126: 124 | C126: 60 | D126: -80 | E126: 20 | F126: -40 | G126: -120 | H126: -40 | I126: 40 | J126: -40 | K126: -20 | L126: 0
B127: 125 | C127: 20 | D127: -160 | E127: 20 | F127: 40 | G127: 0 | H127: -160 | I127: -40 | J127: -20 | K127: -140 | L127: -80
B128: 126 | C128: -120 | D128: -100 | E128: -40 | F128: 0 | G128: 0 | H128: -40 | I128: -180 | J128: -120 | K128: -40 | L128: 0
B129: 127 | C129: 20 | D129: -20 | E129: -20 | F129: -60 | G129: -40 | H129: -60 | I129: -100 | J129: 0 | K129: -40 | L129: 20
B130: 128 | C130: 40 | D130: 60 | E130: 140 | F130: 60 | G130: -40 | H130: -80 | I130: -120 | J130: -40 | K130: -80 | L130: -60
B131: 129 | C131: 0 | D131: -160 | E131: -40 | F131: -20 | G131: -40 | H131: 0 | I131: -80 | J131: -100 | K131: 40 | L131: 20
B132: 130 | C132: -160 | D132: -20 | E132: -80 | F132: -100 | G132: -20 | H132: 60 | I132: -180 | J132: 20 | K132: 0 | L132: -100
B133: 131 | C133: -60 | D133: -40 | E133: 60 | F133: -60 | G133: 20 | H133: -80 | I133: -20 | J133: 0 | K133: 140 | L133: -20
B134: 132 | C134: -60 | D134: 60 | E134: -40 | F134: 0 | G134: 140 | H134: 20 | I134: -60 | J134: 60 | K134: -160 | L134: 60
B135: 133 | C135: -20 | D135: -160 | E135: -100 | F135: 60 | G135: -60 | H135: -80 | I135: 0 | J135: 120 | K135: -100 | L135: 160
B136: 134 | C136: -80 | D136: -100 | E136: -80 | F136: -20 | G136: -60 | H136: 0 | I136: -40 | J136: -80 | K136: -40 | L136: -40
B137: 135 | C137: -120 | D137: -40 | E137: -80 | F137: -60 | G137: 0 | H137: 80 | I137: -80 | J137: 60 | K137: 40 | L137: -20
B138: 136 | C138: -140 | D138: -60 | E138: -40 | F138: 0 | G138: 60 | H138: 120 | I138: -60 | J138: -40 | K138: -40 | L138: 60
B139: 137 | C139: 100 | D139: 100 | E139: -20 | F139: -160 | G139: 40 | H139: -40 | I139: 0 | J139: -100 | K139: -80 | L139: -100
B140: 138 | C140: -140 | D140: -20 | E140: -60 | F140: -40 | G140: 80 | H140: 80 | I140: -100 | J140: -20 | K140: -60 | L140: 0
B141: 139 | C141: -20 | D141: 80 | E141: 0 | F141: 0 | G141: -120 | H141: 20 | I141: 40 | J141: -20 | K141: -100 | L141: -40
B142: 140 | C142: -60 | D142: 0 | E142: 0 | F142: -60 | G142: -80 | H142: -20 | I142: 60 | J142: 40 | K142: 60 | L142: -20
B143: 141 | C143: 40 | D143: -140 | E143: -20 | F143: -100 | G143: -20 | H143: -40 | I143: -40 | J143: -140 | K143: 20 | L143: 80
B144: 142 | C144: -60 | D144: -80 | E144: 60 | F144: 0 | G144: -100 | H144: 40 | I144: 0 | J144: -120 | K144: -60 | L144: 60
B145: 143 | C145: -100 | D145: 100 | E145: -40 | F145: 80 | G145: -20 | H145: -120 | I145: -200 | J145: -40 | K145: -20 | L145: -40
B146: 144 | C146: 20 | D146: -80 | E146: -40 | F146: -100 | G146: 0 | H146: 40 | I146: 20 | J146: 0 | K146: -60 | L146: -20
B147: 145 | C147: -20 | D147: 60 | E147: -100 | F147: 0 | G147: -40 | H147: -180 | I147: 0 | J147: -140 | K147: 20 | L147: -80
B148: 146 | C148: -100 | D148: 80 | E148: -120 | F148: -80 | G148: 20 | H148: -20 | I148: -40 | J148: 40 | K148: -40 | L148: -40
B149: 147 | C149: -60 | D149: 20 | E149: 20 | F149: -100 | G149: -120 | H149: 0 | I149: 20 | J149: 40 | K149: -20 | L149: 0
B150: 148 | C150: -20 | D150: -20 | E150: 20 | F150: -60 | G150: -140 | H150: -180 | I150: -20 | J150: 60 | K150: -40 | L150: 0
B151: 149 | C151: 0 | D151: -160 | E151: 0 | F151: -40 | G151: -20 | H151: 0 | I151: 20 | J151: 40 | K151: 60 | L151: -80
B152: 150 | C152: -40 | D152: 20 | E152: 60 | F152: -100 | G152: -60 | H152: 40 | I152: 60 | J152: -160 | K152: -120 | L152: 120
B153: 151 | C153: 80 | D153: -80 | E153: 60 | F153: -120 | G153: -20 | H153: -160 | I153: -20 | J153: 160 | K153: -40 | L153: 0
B154: 152 | C154: 60 | D154: 20 | E154: 80 | F154: -20 | G154: -100 | H154: -40 | I154: -40 | J154: -100 | K154: -60 | L154: -40
B155: 153 | C155: -40 | D155: -120 | E155: -40 | F155: -80 | G155: 40 | H155: 60 | I155: -60 | J155: -60 | K155: 40 | L155: -60
B156: 154 | C156: -160 | D156: 40 | E156: -100 | F156: 40 | G156: -40 | H156: -140 | I156: -100 | J156: -80 | K156: -60 | L156: -120
B157: 155 | C157: -160 | D157: -100 | E157: -20 | F157: -40 | G157: 20 | H157: -40 | I157: -40 | J157: 0 | K157: 20 | L157: -40
B158: 156 | C158: 80 | D158: -100 | E158: -260 | F158: 60 | G158: -20 | H158: -40 | I158: 0 | J158: -60 | K158: -20 | L158: 0
B159: 157 | C159: -60 | D159: -20 | E159: -60 | F159: -140 | G159: -20 | H159: -60 | I159: 60 | J159: 80 | K159: -80 | L159: -140
B160: 158 | C160: -40 | D160: -80 | E160: 40 | F160: 40 | G160: 0 | H160: 140 | I160: 40 | J160: -20 | K160: -60 | L160: -40
B161: 159 | C161: -100 | D161: -20 | E161: -120 | F161: -80 | G161: -20 | H161: 60 | I161: -80 | J161: -40 | K161: -20 | L161: -20
B162: 160 | C162: -100 | D162: 0 | E162: 0 | F162: -140 | G162: 60 | H162: -100 | I162: 60 | J162: 0 | K162: -80 | L162: -40
B163: 161 | C163: -60 | D163: -40 | E163: -40 | F163: 60 | G163: -60 | H163: -60 | I163: -60 | J163: 0 | K163: 100 | L163: 0
B164: 162 | C164: 20 | D164: -60 | E164: -120 | F164: 20 | G164: 140 | H164: 80 | I164: -120 | J164: -80 | K164: 20 | L164: 60
B165: 163 | C165: 0 | D165: -160 | E165: -80 | F165: 0 | G165: -40 | H165: 40 | I165: 20 | J165: 120 | K165: 60 | L165: 20
B166: 164 | C166: -100 | D166: -80 | E166: 80 | F166: -60 | G166: 60 | H166: -100 | I166: 20 | J166: 60 | K166: 100 | L166: -80
B167: 165 | C167: 60 | D167: -40 | E167: -100 | F167: 140 | G167: 60 | H167: 100 | I167: -80 | J167: 0 | K167: -80 | L167: -120
B168: 166 | C168: -220 | D168: 20 | E168: -60 | F168: 60 | G168: -40 | H168: -40 | I168: -140 | J168: 0 | K168: -140 | L168: -60
B169: 167 | C169: -160 | D169: -100 | E169: -100 | F169: -80 | G169: -40 | H169: -80 | I169: -140 | J169: -40 | K169: 0 | L169: -40
B170: 168 | C170: -60 | D170: -40 | E170: -60 | F170: 0 | G170: -100 | H170: -120 | I170: 40 | J170: -40 | K170: 80 | L170: -40
B171: 169 | C171: -40 | D171: -100 | E171: 0 | F171: -40 | G171: -100 | H171: -40 | I171: 0 | J171: -40 | K171: -100 | L171: -220
B172: 170 | C172: 140 | D172: -20 | E172: -140 | F172: -100 | G172: -100 | H172: 40 | I172: 0 | J172: -60 | K172: 20 | L172: -20
B173: 171 | C173: -60 | D173: 120 | E173: 0 | F173: 20 | G173: -80 | H173: 0 | I173: -80 | J173: -120 | K173: -80 | L173: -100
B174: 172 | C174: -140 | D174: -40 | E174: 100 | F174: -60 | G174: 60 | H174: -60 | I174: 40 | J174: -80 | K174: -100 | L174: -160
B175: 173 | C175: -60 | D175: 100 | E175: 100 | F175: 60 | G175: -80 | H175: -40 | I175: -40 | J175: -80 | K175: -100 | L175: 40
B176: 174 | C176: -100 | D176: 20 | E176: -40 | F176: 160 | G176: -60 | H176: -80 | I176: -60 | J176: -40 | K176: 100 | L176: -200
B177: 175 | C177: 20 | D177: -40 | E177: 20 | F177: 0 | G177: -20 | H177: -220 | I177: 100 | J177: -100 | K177: -120 | L177: -80
B178: 176 | C178: -20 | D178: -40 | E178: 0 | F178: -20 | G178: -40 | H178: -120 | I178: -20 | J178: 140 | K178: 60 | L178: -20
B179: 177 | C179: 60 | D179: -20 | E179: 60 | F179: 0 | G179: -20 | H179: -40 | I179: 80 | J179: -20 | K179: 60 | L179: 40
B180: 178 | C180: -60 | D180: 140 | E180: -40 | F180: 120 | G180: -120 | H180: -80 | I180: 0 | J180: 40 | K180: -40 | L180: -100
B181: 179 | C181: -20 | D181: 200 | E181: -100 | F181: -80 | G181: 60 | H181: -40 | I181: -60 | J181: -60 | K181: 40 | L181: -20
B182: 180 | C182: -160 | D182: -120 | E182: -40 | F182: 20 | G182: 0 | H182: -60 | I182: 80 | J182: 60 | K182: -80 | L182: 0
B183: 181 | C183: 20 | D183: -60 | E183: 100 | F183: -40 | G183: -80 | H183: -40 | I183: -100 | J183: -20 | K183: 60 | L183: 20
B184: 182 | C184: 60 | D184: 80 | E184: 80 | F184: 40 | G184: -40 | H184: 0 | I184: 0 | J184: -20 | K184: 80 | L184: -60
B185: 183 | C185: 100 | D185: -40 | E185: 80 | F185: 100 | G185: -80 | H185: 80 | I185: 0 | J185: -120 | K185: -100 | L185: -140
B186: 184 | C186: 20 | D186: -80 | E186: 60 | F186: -20 | G186: 0 | H186: -80 | I186: -80 | J186: -40 | K186: -40 | L186: -20
B187: 185 | C187: -40 | D187: 0 | E187: -80 | F187: -80 | G187: 0 | H187: 80 | I187: -180 | J187: 0 | K187: -20 | L187: -20
B188: 186 | C188: -40 | D188: -100 | E188: -60 | F188: 40 | G188: -80 | H188: -140 | I188: -100 | J188: 0 | K188: -40 | L188: -20
B189: 187 | C189: 20 | D189: -100 | E189: -100 | F189: -140 | G189: 0 | H189: -40 | I189: 60 | J189: -80 | K189: -140 | L189: -100
B190: 188 | C190: -40 | D190: -180 | E190: 40 | F190: -60 | G190: -80 | H190: -140 | I190: 40 | J190: -180 | K190: -100 | L190: -60
B191: 189 | C191: -60 | D191: 160 | E191: 40 | F191: 120 | G191: -20 | H191: -60 | I191: -20 | J191: 0 | K191: 60 | L191: 100
B192: 190 | C192: -60 | D192: -120 | E192: -20 | F192: -80 | G192: -40 | H192: -80 | I192: -140 | J192: -180 | K192: -120 | L192: -60
B193: 191 | C193: -120 | D193: 20 | E193: 0 | F193: -40 | G193: 20 | H193: -120 | I193: 0 | J193: 80 | K193: 40 | L193: -20
B194: 192 | C194: -20 | D194: -20 | E194: 40 | F194: -80 | G194: 0 | H194: -40 | I194: 100 | J194: -100 | K194: 0 | L194: -120
B195: 193 | C195: 60 | D195: -100 | E195: -100 | F195: 60 | G195: 160 | H195: 120 | I195: -120 | J195: -20 | K195: -40 | L195: -20
B196: 194 | C196: -60 | D196: 20 | E196: 0 | F196: 0 | G196: -20 | H196: -20 | I196: 60 | J196: -140 | K196: -20 | L196: -100
B197: 195 | C197: -40 | D197: 40 | E197: 0 | F197: 20 | G197: -20 | H197: -140 | I197: -80 | J197: -60 | K197: -20 | L197: -100
B198: 196 | C198: 20 | D198: 100 | E198: -100 | F198: 20 | G198: -20 | H198: 0 | I198: -40 | J198: 0 | K198: -120 | L198: 0
B199: 197 | C199: 20 | D199: -160 | E199: 0 | F199: -20 | G199: 20 | H199: -20 | I199: 60 | J199: 20 | K199: 20 | L199: 0
B200: 198 | C200: -20 | D200: -40 | E200: -80 | F200: -100 | G200: -80 | H200: 0 | I200: -140 | J200: 40 | K200: -60 | L200: -80
... 802 more rows
